Cogmind - Beta 17 @@@ ROGUE MODE // 2026.07.25 @ 14:30:37 Player: teag2 Result: Self-destructed Performance ------------- Evolutions (8) 4000 Regions Visited (29) 5800 Robots Destroyed (239) 1195 Value Destroyed (10888) 10888 Prototype IDs (75) 1500 Alien Tech Used (0) 0 Bonus (12355) 12355 TOTAL SCORE: 35738 Bonus ------- High Alert Combat Kills 1791 Follower Combat Kills 3087 Awakened Behemoth Slayer 1000 Network Hubs Disabled 200 Met Data Miner 300 Met Imprinter 300 Was Imprinted 300 Destroyed Z-Imprinter 1000 Triggered Deep Caves Wall 500 Exposed GOLEM Chamber 500 Met Zhirov 300 Met Warlord at Base 500 MAIN.C Attacked Warlord 500 Warlord Defense Kills 1670 Built Enhanced Grunts 300 A7 Reached Mainframe 300 Friendly Fire -193 Cogmind --------- Core Integrity 1377/1450 Matter 258/300 Energy 100/100 System Corruption 0% Temperature Cool (0) Movement Core (50) Location -2/Research Parts ------- > --- POWER (2) -------- (None) > --- PROPULSION (6) --- (None) > --- UTILITY (11) ----- (None) > --- WEAPON (4) ------- (None) > --- INVENTORY (5) ---- Reinforced Quantum Reactor Vortex Chain Reactor Armored Medium Treads Advanced Myomer Leg Peak State ------------ > --- POWER ------------ Assembled Flux Generator > --- PROPULSION ------- Myomer Leg Myomer Leg Myomer Leg Assembled Alloy Leg Assembled Alloy Leg > --- UTILITY ---------- Assembled Nanovents Assembled Nanovents Assembled Nanovents High-capacity Storage Unit Assembled Biocell Array Advanced Signal Interpreter 0b10 Decoder Chip [Generic] Assembled Combat Suite Assembled Alloy Armor GOLEM Unit > --- WEAPON ----------- Assembled Focal Cannon Assembled Focal Cannon Assembled Focal Cannon > --- INVENTORY -------- Reinforced Quantum Reactor Vortex Chain Reactor Armored Medium Treads Armored Medium Treads Improved Thunder Leg Experimental Heat Sink High-capacity Storage Unit Zionite Biocell Experimental Cloaking Device Centrium Medium Armor Plating Graphene Brace Graphene Brace Advanced Shield Generator Vortex Rifle Vortex Rifle Compact Ion Cannon Dirty Datajack CR-A16's Behemoth Slayer GAL Module [Rating: 178] Favorites ----------- Power Assembled Flux Generator Engine Cooled Ion Engine Power Core Light Nuclear Core Reactor Assembled Flux Generator Propulsion Assembled Alloy Leg Treads Light Treads Leg Assembled Alloy Leg Wheel Maxwheels Hover Unit Zionite Glidesys I Utility Assembled Nanovents Device Assembled Nanovents Storage Large Storage Unit Processor 0b10 Decoder Chip [Generic] Hackware Hacking Suite Protection Assembled Alloy Armor Weapon Assembled Focal Cannon Energy Gun Zionite Laser-S Energy Cannon Assembled Focal Cannon Ballistic Gun Heavy Assault Rifle Ballistic Cannon Battle Cannon Launcher Advanced EMP Blaster Special Weapon Plasma Cutter Impact Weapon Powered Hammer Piercing Weapon CR-A16's Pointy Stick Special Melee Weapon Dirty Datajack Build | -11 -10 -10 -8 -8 -7 -7 -7 -7 -7 -6 -6 -6 -6 -6 -5 -5 -5 -5 -5 -4 -4 -4 -4 -4 -4 -4 -4 -3 -2 ------- Run | Yrd Mat Sub Mat Sto Fac Low Low Zio Dee Pro Fac Low Low Dat Pro Fac Upp Upp War Pro Fac Was Fac Ext Cet Arc Hub Res Res Slots Evolved 16 | . . . 4 . 2 . . . . . 2 . . . . 2 . . . . 2 . . . . . . 2 2 Power 1 | . . . . . . . . . . . 1 . . . . . . . . . . . . . . . . . . Propulsion 4 | . . . 2 . . . . . . . . . . . . . . . . . . . . . . . . 1 1 Utility 9 | . . . 2 . 2 . . . . . 1 . . . . 2 . . . . 2 . . . . . . . . Weapon 2 | . . . . . . . . . . . . . . . . . . . . . . . . . . . . 1 1 Parts Attached 149 | . 13 11 13 7 8 4 . 4 42 . 1 . . . 1 . . 2 9 2 1 2 7 4 1 1 2 12 2 Power 12 | . 1 2 2 1 . . . 1 3 . 1 . . . . . . . . . . . 1 . . . . . . Engine 5 | . 1 1 1 1 . . . 1 . . . . . . . . . . . . . . . . . . . . . Core 2 | . . 1 1 . . . . . . . . . . . . . . . . . . . . . . . . . . Reactor 5 | . . . . . . . . . 3 . 1 . . . . . . . . . . . 1 . . . . . . Propulsion 33 | . 4 3 1 . . . . . 11 . . . . . 1 . . 1 2 1 . 1 . 3 . . 1 3 1 Treads 11 | . 2 3 . . . . . . 4 . . . . . . . . . . . . . . 1 . . . . 1 Leg 14 | . 2 . . . . . . . 1 . . . . . . . . 1 2 1 . 1 . 2 . . 1 3 . Wheel 1 | . . . 1 . . . . . . . . . . . . . . . . . . . . . . . . . . Hover 7 | . . . . . . . . . 6 . . . . . 1 . . . . . . . . . . . . . . Flight . | . . . . . . . . . . . . . . . . . . . . . . . . . . . . . . Utility 64 | . 4 4 3 2 6 3 . . 21 . . . . . . . . 1 5 . 1 1 4 . . 1 1 7 . Device 22 | . 1 1 1 1 . 1 . . 8 . . . . . . . . 1 2 . . 1 2 . . 1 . 2 . Storage 8 | . 1 2 . . . . . . 3 . . . . . . . . . . . . . . . . . 1 1 . Processor 8 | . . . 1 . . 2 . . 1 . . . . . . . . . 1 . 1 . . . . . . 2 . Hackware 6 | . . . . . 3 . . . . . . . . . . . . . 1 . . . 1 . . . . 1 . Protection 20 | . 2 1 1 1 3 . . . 9 . . . . . . . . . 1 . . . 1 . . . . 1 . Artifact . | . . . . . . . . . . . . . . . . . . . . . . . . . . . . . . Weapon 40 | . 4 2 7 4 2 1 . 3 7 . . . . . . . . . 2 1 . . 2 1 1 . . 2 1 Energy Gun 17 | . . 1 2 3 . . . . 7 . . . . . . . . . 2 . . . . . 1 . . 1 . Energy Cannon 4 | . 1 . 1 . . . . . . . . . . . . . . . . . . . . . . . . 1 1 Ballistic Gun 7 | . 2 . 1 1 1 1 . 1 . . . . . . . . . . . . . . . . . . . . . Ballistic Cannon 4 | . . 1 2 . 1 . . . . . . . . . . . . . . . . . . . . . . . . Launcher 2 | . . . 1 . . . . 1 . . . . . . . . . . . . . . . . . . . . . Special Weapon 2 | . 1 . . . . . . 1 . . . . . . . . . . . . . . . . . . . . . Impact Weapon . | . . . . . . . . . . . . . . . . . . . . . . . . . . . . . . Slashing Weapon . | . . . . . . . . . . . . . . . . . . . . . . . . . . . . . . Piercing Weapon 2 | . . . . . . . . . . . . . . . . . . . . . . . 1 1 . . . . . Special Melee Weapon 2 | . . . . . . . . . . . . . . . . . . . . 1 . . 1 . . . . . . Unidentified Prototypes 34 | . . . 2 5 1 . . 1 14 . . . . . . . . . 6 1 . . . . 1 . . 3 . Parts Lost 92 | . 3 7 . 3 3 1 . . 22 2 . . . . 1 . 11 1 . 3 . . 7 5 2 . 10 11 . Power 7 | . 1 2 . . . . . . 3 . . . . . . . . . . . . . 1 . . . . . . Propulsion 22 | . . 3 . . . . . . 4 . . . . . 1 . 4 . . 1 . . . 2 1 . 1 5 . Utility 40 | . 1 2 . 2 1 . . . 11 . . . . . . . 6 1 . . . . 4 3 1 . 5 3 . Weapon 23 | . 1 . . 1 2 1 . . 4 2 . . . . . . 1 . . 2 . . 2 . . . 4 3 . Highest Loss Streak 11 | . 2 3 . 2 1 1 . . 11 1 . . . . 1 . 11 1 . 2 . . 3 2 2 . 6 8 . To Critical Strikes 2 | . . . . . . . . . . . . . . . . . . . . 1 . . . . 1 . . . . Average Backups 14 | . 11 12 19 23 24 20 24 24 9 13 10 12 12 12 11 11 12 11 13 12 11 12 12 12 13 13 15 16 4 Power 1 | . . . . 1 1 1 1 . . 1 . . . . . . . 2 1 1 1 1 1 2 2 2 2 2 2 Propulsion 2 | . 3 1 3 3 6 7 7 6 2 1 1 2 2 2 1 1 1 . . . . . . . 1 1 2 2 2 Utility 6 | . 6 7 10 13 12 9 10 9 4 7 6 7 7 7 7 7 7 6 5 5 4 4 4 4 4 5 6 7 . Weapon 3 | . . 2 4 5 2 . 3 5 2 4 3 3 3 3 3 3 2 2 3 3 4 4 3 3 4 4 3 3 . Tool/Special . | . . . . . . . . . . . . . . . . . . . . . . . . . . . . . . Unused Backups 41 | . 2 . . . 4 . 1 4 16 . . . . . . . . 1 3 . . . 1 1 . . . 6 2 Power 2 | . . . . . . . . . . . . . . . . . . . 1 . . . . . . . . . 1 Propulsion 6 | . . . . . . . . 1 2 . . . . . . . . . . . . . . . . . . 2 1 Utility 21 | . 1 . . . 2 . 1 1 9 . . . . . . . . 1 . . . . 1 1 . . . 4 . Weapon 11 | . 1 . . . 2 . . 2 5 . . . . . . . . . 1 . . . . . . . . . . Tool/Special 1 | . . . . . . . . . . . . . . . . . . . 1 . . . . . . . . . . Average Slot Usage (%) 82 | . 99 99 74 75 75 75 76 75 73 98 89 93 93 93 93 82 59 64 83 87 88 88 88 88 89 88 88 80 . Engine 2 | . 13 . 2 4 7 7 7 7 . . . . . . . . . . . . . . . . . . . . . Core 1 | . . 12 4 2 . . . . . . . . . . . . . . . . . . . . . . . . . Reactor 3 | . . . . . . . . . 4 7 11 13 13 13 13 11 8 4 5 4 5 5 5 5 5 5 5 3 . Treads 3 | . 22 27 . . . . . . 2 . . . . . . . . . . . . . . 1 . . . . . Leg 8 | . 4 . . . . . . . . . . . . . . . . 14 18 22 21 20 21 18 21 21 20 19 . Wheel 2 | . . . 6 7 7 7 7 7 7 . . . . . . . . . . . . . . . . . . . . Hover 4 | . . . . . . . . . 16 30 25 26 26 26 26 23 15 . . . . . . . . . . . . Device 15 | . . 5 6 7 6 6 7 7 13 22 25 26 26 26 26 23 16 21 25 22 25 30 28 20 21 23 25 18 . Storage 9 | . 14 14 7 7 7 7 7 7 4 15 13 13 13 13 13 11 9 9 11 11 10 10 9 10 10 10 10 8 . Processor 4 | . . . 6 7 . 14 15 15 6 7 6 6 6 6 6 5 3 . . . 5 5 5 5 5 5 5 6 . Hackware 1 | . . . . . 19 . . . . . . . . . . . . . 1 5 5 . 2 5 5 3 . . . Protection 7 | . 12 8 6 7 8 15 15 15 5 . . . . . . . . 3 6 5 5 5 5 10 10 8 10 8 . Energy Gun 3 | . . 14 11 9 2 3 7 6 4 13 5 6 6 6 6 5 2 . . . . . . . . . 2 . . Energy Cannon 4 | . 1 5 1 . . . . . . . . . . . . . . 7 10 9 10 10 9 9 9 9 7 11 . Ballistic Gun 3 | . 26 . . 12 14 11 7 6 2 . . . . . . . . . . . . . . . . . . . . Ballistic Cannon 1 | . . 8 15 5 . . . . . . . . . . . . . . . . . . . . . . . . . Peak Build Rating 178 | . 10 16 57 60 68 67 65 69 103 95 103 103 103 103 103 103 104 140 153 152 165 165 162 156 155 164 163 178 12 Average Rating 96 | . 7 13 54 58 64 63 64 66 68 92 100 103 103 103 103 103 74 111 140 150 164 161 154 151 154 156 160 159 4 On Entrance 91 | 6 6 10 15 57 58 64 65 65 68 91 83 103 103 103 103 103 103 10 138 149 152 165 162 153 154 155 161 136 4 Avg Prop Armor Cover (%) 2 | . . . . . . . . . 1 . . . . . . . . . . . . . 3 5 . . . . . Naked Turns 147 | . . . . . . . . . . . . . . . . . . . . . . . . . . . . 70 77 Heaviest Build 141 | 11 30 54 105 105 105 105 104 104 108 47 55 55 55 55 55 55 56 101 101 101 102 103 107 105 105 105 126 141 . Greatest Support 143 | 20 40 40 40 30 30 30 30 30 58 56 56 56 56 56 56 56 56 100 130 115 115 120 120 120 110 130 130 143 3 Greatest Overweight (x) 7 | . . 1 3 3 3 3 3 3 3 . . . . . . . 7 2 1 1 . 1 1 1 1 . 1 1 . Average Overweight (x) 1 | . . . 2 3 3 3 3 3 . . . . . . . . . 1 . . . . . . . . . . . Largest Inventory Capacity 25 | . 15 25 25 25 25 25 25 25 25 15 15 15 15 15 15 15 15 15 15 15 15 15 15 15 15 15 20 20 5 Average Capacity 16 | . 13 16 22 25 25 25 25 25 12 15 15 15 15 15 15 15 15 14 15 15 15 15 15 15 15 15 19 19 5 Most Carried 25 | . 15 18 25 25 25 25 25 25 25 15 15 14 14 14 14 13 15 15 15 15 14 15 15 15 15 15 20 20 5 Average Carried 15 | . 11 13 20 24 24 20 24 24 9 15 12 14 14 14 13 13 14 12 14 14 13 14 14 14 14 15 18 18 4 Final Capacity 25 | 8 15 20 25 25 25 25 25 25 15 15 15 15 15 15 15 15 15 15 15 15 15 15 15 15 15 15 20 5 5 Final Carried 25 | 6 15 17 25 25 23 25 25 25 15 15 14 14 14 14 13 13 15 15 15 14 14 15 14 15 15 15 19 5 5 Transmogrified Parts 16 | . . . . . . . . . 16 . . . . . . . . . . . . . . . . . . . . Integrity Recovered 915 | . . . . . . . . . 915 . . . . . . . . . . . . . . . . . . . . Class Distribution -------------------- 29% | Mutant 25% | Golem 10% | Scavenger-Mutant 8% | Hacker-Golem 7% | Commander-Golem 7% | Scavenger-Sprinter 5% | Gunner Dominant Class ---------------- Mutant | -10/Materials Mutant | -10/Subcaves Gunner | -8/Materials Gunner | -8/Storage Commander-Mutant | -7/Factory Mutant | -7/Lower Caves Mutant | -7/Lower Caves Mutant | -7/Zion Scavenger-Mutant | -7/Deep Caves Scavenger-Sprinter | -6/Proximity Caves Scavenger-Sprinter | -6/Factory Scavenger-Sprinter | -6/Lower Caves Scavenger-Sprinter | -6/Lower Caves Scavenger-Sprinter | -6/Data Miner Scavenger-Sprinter | -5/Proximity Caves Scavenger-Sprinter | -5/Factory Scavenger-Sprinter | -5/Upper Caves Golem | -5/Upper Caves Golem | -5/Warlord Hacker-Golem | -4/Proximity Caves Hacker-Golem | -4/Factory Golem | -4/Waste Golem | -4/Factory Golem | -4/Extension Commander-Golem | -4/Cetus Commander-Golem | -4/Archives Golem | -4/Hub_04(d) Golem | -3/Research Mutant | -2/Research Resources | -11 -10 -10 -8 -8 -7 -7 -7 -7 -7 -6 -6 -6 -6 -6 -5 -5 -5 -5 -5 -4 -4 -4 -4 -4 -4 -4 -4 -3 -2 ----------- Run | Yrd Mat Sub Mat Sto Fac Low Low Zio Dee Pro Fac Low Low Dat Pro Fac Upp Upp War Pro Fac Was Fac Ext Cet Arc Hub Res Res Matter Collected 4317 | 183 323 220 572 531 565 208 28 46 955 15 60 . . . . . 10 30 110 30 . 60 88 61 10 5 56 151 . Remotely . | . . . . . . . . . . . . . . . . . . . . . . . . . . . . . . Salvage Created 12924 | . 459 373 586 715 679 365 . . 667 . 210 . . . . . . 169 755 487 . 1545 1481 1504 183 37 1176 1533 . Parts 594 | . 32 24 29 46 31 11 . . 38 . 3 . . . . . . 11 42 22 . 17 76 66 8 4 49 85 . Haulers Intercepted 5 | . 1 . 1 1 1 . . . . . 1 . . . . . . . . . . . . . . . . . . Recyclers Shooed 5 | . 1 . 1 . . . . . . . . . . . . . . . . . . . . 1 . . . 2 . Parts Field Recycled . | . . . . . . . . . . . . . . . . . . . . . . . . . . . . . . Retrieved Matter . | . . . . . . . . . . . . . . . . . . . . . . . . . . . . . . Parts Self-Destructed 66 | . . 11 . . . 14 . 2 . . . . . . . . 7 10 . 22 . . . . . . . . . Prevented 5 | . . . . . . . 1 . . 2 . . . . . . . 2 . . . . . . . . . . . Parts Restored . | . . . . . . . . . . . . . . . . . . . . . . . . . . . . . . Kills | -11 -10 -10 -8 -8 -7 -7 -7 -7 -7 -6 -6 -6 -6 -6 -5 -5 -5 -5 -5 -4 -4 -4 -4 -4 -4 -4 -4 -3 -2 ------- Run | Yrd Mat Sub Mat Sto Fac Low Low Zio Dee Pro Fac Low Low Dat Pro Fac Upp Upp War Pro Fac Was Fac Ext Cet Arc Hub Res Res Combat Hostiles Destroyed 191 | . 12 13 14 15 10 7 . . 9 . . . . . . . . 2 15 11 . 6 23 21 2 . 14 17 . Melee 2 | . 1 . . . . . . . . . . . . . . . . . 1 . . . . . . . . . . Guns 58 | . 9 6 6 6 10 7 . . 8 . . . . . . . . . . . . . 3 1 . . 1 1 . Cannons 114 | . 2 7 8 5 . . . . . . . . . . . . . 2 14 11 . 6 16 17 2 . 8 16 . AOE 7 | . . . . 4 . . . . . . . . . . . . . . . . . . 2 . . . 1 . . Classes Destroyed 27 | . 6 2 2 . 2 1 . . 1 . . . . . . . . 1 3 1 . 1 . 1 . . 4 2 . Worker 6 | . 1 . 1 3 1 . . . . . . . . . . . . . . . . . . . . . . . . Builder 9 | . . . 1 . 2 . . . . . . . . . . . . . . . . . 6 . . . . . . Tunneler 1 | . . . . . . . . . . . . . . . . . . . . . . . . . . . . 1 . Hauler 5 | . 1 . 1 1 1 . . . . . 1 . . . . . . . . . . . . . . . . . . Recycler 7 | . . . 2 1 2 . . . . . 1 . . . . . . . . . . . . . . . . 1 . Carrier 1 | . . . . . . . . . . . . . . . . . . . . . . . . . . . 1 . . Operator 4 | . 1 . 1 . . . . . . . . . . . . . . . . . . . . . . . . 2 . Drone 2 | . . . . . . . . . . . . . . . . . . . . 2 . . . . . . . . . Watcher 14 | . 1 . 1 1 3 . . . . . . . . . . . . . . . . . 2 . 1 . 2 3 . Swarmer 39 | . 5 5 6 3 5 1 . . . . . . . . . . . . 2 4 . . 5 3 . . . . . Saboteur 2 | . . . . . . . . . . . . . . . . . . . 2 . . . . . . . . . . Grunt 65 | . 7 . 7 10 1 3 . . . . . . . . . . . . 6 5 . . 9 8 . . 6 3 . Brawler 4 | . . . . . . 1 . . . . . . . . . . . . 1 . . . . 1 . . 1 . . Duelist 1 | . . . . . . . . . . . . . . . . . . . . . . . . . . . 1 . . Protector 1 | . . . . . . . . . . . . . . . . . . . . . . . . . . . 1 . . Sentry 21 | . . 1 1 2 2 1 . . . . . . . . . . . 1 . . . . 3 6 . . 1 3 . Demolisher 1 | . . . . . . . . . . . . . . . . . . . 1 . . . . . . . . . . Specialist 1 | . . . . . . . . . . . . . . . . . . . . . . . . 1 . . . . . Hunter 7 | . . . . . 1 . . . . . . . . . . . . . 2 . . . 2 . . . . 2 . Programmer 16 | . . . . . 1 1 . . . . . . . . . . . . . . . . 3 . . . 3 8 . Heavy 1 | . . . . . . . . . . . . . . . . . . . . . . . . . . . 1 . . Behemoth 4 | . . . . . . . . . . . . . . . . . . 1 . . . . 1 2 . . . . . Compactor 6 | . . . . . . . . . . . . . . . . . . . . . . 6 . . . . . . . Cetus Guard 2 | . . . . . . . . . . . . . . . . . . . . . . . . . 2 . . . . Striker 1 | . . . . . . . . . . . . . . . . . . . . . . . . . . . . 1 . Executioner 1 | . . . . . . . . . . . . . . . . . . . 1 . . . . . . . . . . Subdweller 7 | . . 7 . . . . . . . . . . . . . . . . . . . . . . . . . . . Z-Light 9 | . . . . . . . . . 9 . . . . . . . . . . . . . . . . . . . . Thug 1 | . . . . . . . . . 1 . . . . . . . . . . . . . . . . . . . . Best Kill Streak 12 | . 3 2 4 12 3 3 . . 2 . 1 . . . . . . 1 8 6 . 1 12 4 2 . 6 7 . Combat Bots Only 8 | . 3 2 3 8 2 3 . . 2 . . . . . . . . 1 8 6 . 1 8 4 1 . 5 6 . Max Kills in Single Turn 8 | . 2 1 1 8 1 1 . . 1 . 1 . . . . . . 1 1 1 . 1 4 1 1 . 3 1 . Gunslinging . | . . . . . . . . . . . . . . . . . . . . . . . . . . . . . . Exploded 4 | . . . . 4 . . . . . . . . . . . . . . . . . . 2 . . . 1 . . Melee 1 | . 1 . . . . . . . . . . . . . . . . . 1 . . . . . . . . . . Uniques/NPCs Destroyed . | . . . . . . . . . . . . . . . . . . . . . . . . . . . . . . Combat | -11 -10 -10 -8 -8 -7 -7 -7 -7 -7 -6 -6 -6 -6 -6 -5 -5 -5 -5 -5 -4 -4 -4 -4 -4 -4 -4 -4 -3 -2 -------- Run | Yrd Mat Sub Mat Sto Fac Low Low Zio Dee Pro Fac Low Low Dat Pro Fac Upp Upp War Pro Fac Was Fac Ext Cet Arc Hub Res Res Hostile Shots Fired 1821 | . 97 73 67 59 146 55 1 . 188 27 . 6 . . 12 1 129 30 109 83 . . 153 144 20 . 135 272 14 Missed 666 | . 18 24 22 21 54 19 1 . 75 20 . 4 . . 9 1 42 9 31 26 . . 47 60 10 . 54 108 11 Hits 1155 | . 79 49 45 38 92 36 . . 113 7 . 2 . . 3 . 87 21 78 57 . . 106 84 10 . 81 164 3 Melee 16 | . . . . . . . . . . . . . . . . . . . 7 3 . . . 1 . . 3 2 . Projectile 1139 | . 79 49 45 38 92 36 . . 113 7 . 2 . . 3 . 87 21 71 54 . . 106 83 10 . 78 162 3 AOE 7 | . . . . . . . . . . . . . . . . . . . 5 . . . 1 . . . . 1 . Critical Strikes 52 | . 2 1 4 2 . 1 . . 1 . . . . . . . 1 1 7 4 . . 3 4 1 . 11 9 . Actively Blocked 7 | . . . . . . . . . . . . . . . . . . . 3 . . . . . . . . 4 . Part Disruptions 1 | . . . . . . . . . . . . . . . . . . . . . . . 1 . . . . . . Damage Taken 20610 | . 843 842 512 500 981 367 . . 3148 136 . 39 . . 60 . 1125 294 1473 942 . . 2150 1373 148 . 2094 3510 73 Core 3171 | . 67 150 64 23 144 84 . . 285 . . 21 . . . . 557 . 136 46 . . 85 77 12 . 193 1154 73 Absorbed by Shields 245 | . . . . . . . . . . . . . . . . . . . . . . . . 170 75 . . . . Redirected to Shielding 544 | . . . . . 27 40 . . 327 . . . . . . . . . 150 . . . . . . . . . . Ignored by Resistances 2108 | . . . . . . . . . . . . . . . . . . 59 295 202 . . 447 320 46 . 178 561 . Regen/Repaired (Parts) 727 | . . . . . . . . . . . . . . . . . . . 82 . . 79 94 195 11 . 49 217 . Core Remaining (%) 53 | 100 . 13 . 84 . . . . . 26 . . . . 97 . . . . 26 . . . . . . 68 11 . Volleys Fired 708 | . 58 73 36 27 57 23 . 2 68 . 18 . 6 . . 2 10 7 47 30 . 24 54 40 10 11 51 54 . Largest 4 | . 2 2 4 4 3 2 . 2 2 . 1 . 1 . . 1 1 2 2 2 . 2 2 2 2 2 2 3 . Hottest 240 | . 100 125 197 184 111 84 . 94 146 . 60 . 60 . . 60 60 50 50 50 . 50 65 65 240 50 85 80 . Shots Fired 1433 | . 113 121 129 108 134 44 . 4 131 . 18 . 6 . . 2 10 14 65 59 . 48 93 79 18 22 82 133 . Gun 687 | . 98 73 48 81 134 44 . 4 131 . 18 . 6 . . 2 10 . 1 . . . 5 2 2 . 16 12 . Cannon 745 | . 14 48 81 27 . . . . . . . . . . . . . 14 64 59 . 48 88 77 16 22 66 121 . Launcher . | . . . . . . . . . . . . . . . . . . . . . . . . . . . . . . Special 1 | . 1 . . . . . . . . . . . . . . . . . . . . . . . . . . . . Kinetic 483 | . 98 34 74 73 114 34 . 2 54 . . . . . . . . . . . . . . . . . . . . Thermal 904 | . 15 87 55 35 20 10 . 2 77 . 18 . 6 . . 2 . 14 64 59 . 48 88 77 18 22 66 121 . Explosive . | . . . . . . . . . . . . . . . . . . . . . . . . . . . . . . Electromagnetic . | . . . . . . . . . . . . . . . . . . . . . . . . . . . . . . Entropic 20 | . . . . . . . . . . . . . . . . . . . 1 . . . 5 2 . . . 12 . Phasic 26 | . . . . . . . . . . . . . . . . . 10 . . . . . . . . . 16 . . Robot Hit Streak 38 | . 6 23 38 10 8 13 . . 9 . 8 . . . . . . 20 23 22 . 14 11 13 7 4 22 10 . Robot Miss Streak 11 | . 4 2 11 6 6 2 . . 9 . . . . . . . . . 1 3 . 2 3 2 1 1 3 3 . Penetration Max . | . . . . . . . . . . . . . . . . . . . . . . . . . . . . . . Secondary Targets 2 | . 1 . . . . . . . 1 . . . . . . . . . . . . . . . . . . . . Max Gunslinging Chain 1 | . 1 . . . . . . . 1 . . . . . . . . . . . . . . . . . . . . Shots Hit Robots 900 | . 63 92 77 64 69 32 . . 60 . 7 . . . . . . 12 47 49 . 41 74 59 12 4 56 82 . Core Hits 419 | . 28 24 36 34 34 13 . . 24 . 4 . . . . . . 5 25 19 . 15 43 34 7 2 32 40 . Critical Kills 5 | . 1 . . . . . . . 4 . . . . . . . . . . . . . . . . . . . . Critical Parts Destroyed 2 | . . . . 1 . . . . 1 . . . . . . . . . . . . . . . . . . . . Critical Strikes 26 | . 1 2 5 1 2 1 . . 12 . . . . . . . . . . . . . . . . . 2 . . Burn 10 | . . 1 4 . 1 1 . . 3 . . . . . . . . . . . . . . . . . . . . Destroy 12 | . 1 . . 1 1 . . . 9 . . . . . . . . . . . . . . . . . . . . Blast 2 | . . 1 1 . . . . . . . . . . . . . . . . . . . . . . . . . . Intensify 2 | . . . . . . . . . . . . . . . . . . . . . . . . . . . 2 . . Melee Attacks 33 | . . . . . . . . . . . . . . . . . . . . 7 . . 18 2 . . . 6 . Impact . | . . . . . . . . . . . . . . . . . . . . . . . . . . . . . . Slashing . | . . . . . . . . . . . . . . . . . . . . . . . . . . . . . . Piercing 33 | . . . . . . . . . . . . . . . . . . . . 7 . . 18 2 . . . 6 . Sneak Attacks 1 | . . . . . . . . . . . . . . . . . . . . 1 . . . . . . . . . Combat Hostiles . | . . . . . . . . . . . . . . . . . . . . . . . . . . . . . . Follow-up Attacks . | . . . . . . . . . . . . . . . . . . . . . . . . . . . . . . Damage Inflicted 30359 | . 765 1596 1504 1754 1213 549 . . 1427 . 201 . . . . . . 503 2104 2085 . 1911 3532 2834 658 193 3346 4184 . Guns 7343 | . 569 963 609 806 1213 549 . . 1427 . 201 . . . . . . . . . . . 209 52 . . 297 448 . Cannons 20876 | . 157 633 895 305 . . . . . . . . . . . . . 503 2104 2077 . 1911 2774 2752 658 193 2268 3646 . Explosions 1678 | . . . . 643 . . . . . . . . . . . . . . . . . . 273 . . . 762 . . Melee 277 | . . . . . . . . . . . . . . . . . . . . 8 . . 258 . . . . 11 . Ramming 185 | . 39 . . . . . . . . . . . . . . . . . . . . . 18 30 . . 19 79 . Kinetic 4248 | . 569 457 813 674 1008 399 . . 328 . . . . . . . . . . . . . . . . . . . . Thermal 22965 | . 157 1139 691 437 205 150 . . 1099 . 201 . . . . . . 503 2104 2077 . 1911 2774 2752 658 193 2268 3646 . Explosive 916 | . . . . 643 . . . . . . . . . . . . . . . . . . 273 . . . . . . Electromagnetic 762 | . . . . . . . . . . . . . . . . . . . . . . . . . . . 762 . . Impact . | . . . . . . . . . . . . . . . . . . . . . . . . . . . . . . Slashing . | . . . . . . . . . . . . . . . . . . . . . . . . . . . . . . Piercing 277 | . . . . . . . . . . . . . . . . . . . . 8 . . 258 . . . . 11 . Entropic 709 | . . . . . . . . . . . . . . . . . . . . . . . 209 52 . . . 448 . Phasic 297 | . . . . . . . . . . . . . . . . . . . . . . . . . . . 297 . . Highest Corruption 22 | . . . 3 3 . 2 2 2 . . . . . . . . . . . 2 . . 2 2 2 2 15 22 . Average Corruption 2 | . . . 3 3 . 1 2 2 . . . . . . . . . . . 2 . . 2 2 2 1 4 6 . Corruption Purged 2 | . . . . . . . . . . . . . . . . . . . . . . . . . . 2 . . . Corruption Blocked . | . . . . . . . . . . . . . . . . . . . . . . . . . . . . . . Effects 94 | . . . 11 9 . 4 4 . . . . . . . . . . . . 7 . . 9 19 10 2 2 17 . Message Errors 22 | . . . 1 2 . 1 1 . . . . . . . . . . . . 2 . . . 7 4 . . 4 . Matter Fused 28 | . . . 6 2 . 1 1 . . . . . . . . . . . . 2 . . 1 3 1 2 . 9 . Heat Flow Errors 10 | . . . . 2 . 1 1 . . . . . . . . . . . . 1 . . . 4 1 . . . . Energy Discharges 14 | . . . 2 . . 1 . . . . . . . . . . . . . 1 . . 4 . 3 . 2 1 . Parts Fused 1 | . . . 1 . . . . . . . . . . . . . . . . . . . . . . . . . . Data Loss (minor) 14 | . . . 1 2 . . 1 . . . . . . . . . . . . 1 . . 3 4 1 . . 1 . Data Loss (major) 2 | . . . . . . . . . . . . . . . . . . . . . . . . 1 . . . 1 . Misfires 2 | . . . . 1 . . . . . . . . . . . . . . . . . . 1 . . . . . . Misdirections 1 | . . . . . . . . . . . . . . . . . . . . . . . . . . . . 1 . Overload Shots 2 | . . . . . . . . . . . . . . . . . . . . . . . . . 2 . . . . Overflow Damage 788 | . . . 34 56 . . . . . . . . . . . . . . 57 150 . . 167 36 17 8 89 174 . Projectiles 703 | . . . 34 . . . . . . . . . . . . . . . 57 150 . . 148 35 17 8 89 165 . Explosions 75 | . . . . 56 . . . . . . . . . . . . . . . . . . 19 . . . . . . Melee 10 | . . . . . . . . . . . . . . . . . . . . . . . . 1 . . . 9 . Knockbacks 25 | . . 6 17 2 . . . . . . . . . . . . . . . . . . . . . . . . . Impact . | . . . . . . . . . . . . . . . . . . . . . . . . . . . . . . Kinetic 23 | . . 6 15 2 . . . . . . . . . . . . . . . . . . . . . . . . . Secondary 2 | . . . 2 . . . . . . . . . . . . . . . . . . . . . . . . . . Self-Inflicted Damage 243 | . . . . 76 . . . . . . . . . . . . . . . . . . 60 . . . 104 3 . Shots 3 | . . . . 1 . . . . . . . . . . . . . . . . . . 1 . . . 1 . . Rammed 9 | . 7 . . . . . . . . . . . . . . . . . . . . . . . . . . 2 . Targets Rammed 23 | . 8 . . . . . . . . . . . . . . . . . . . . . 3 2 . . 3 7 . Kicked 14 | . 1 . . . . . . . . . . . . . . . . . . . . . 3 2 . . 3 5 . Crushed . | . . . . . . . . . . . . . . . . . . . . . . . . . . . . . . Highest Temperature 364 | . 310 72 231 335 60 177 83 364 207 . 42 . 84 . . 8 48 222 26 209 . . . 176 240 . 1 . . Average Temperature 52 | . 68 20 66 65 21 29 51 132 34 . 14 . 44 . . 6 22 130 13 116 . . . 78 110 . 1 . . Received Heat Transfer 4381 | . 363 180 189 180 204 81 . . 896 24 . . . . 18 . 24 324 373 181 . . 318 374 . . 274 378 . Effects 1 | . 1 . . . . . . . . . . . . . . . . . . . . . . . . . . . . Interference 1 | . 1 . . . . . . . . . . . . . . . . . . . . . . . . . . . . Siege Activations . | . . . . . . . . . . . . . . . . . . . . . . . . . . . . . . Martial Activations . | . . . . . . . . . . . . . . . . . . . . . . . . . . . . . . Shielding Activations . | . . . . . . . . . . . . . . . . . . . . . . . . . . . . . . Robots Disrupted . | . . . . . . . . . . . . . . . . . . . . . . . . . . . . . . Combat Hostiles . | . . . . . . . . . . . . . . . . . . . . . . . . . . . . . . Robots Corrupted 6 | . . . . . . . . . . . . . . . . . . . . . . . . . . . 5 1 . Combat Hostiles 4 | . . . . . . . . . . . . . . . . . . . . . . . . . . . 4 . . Parts Fried 8 | . . . . . . . . . . . . . . . . . . . . . . . . 1 . . 6 1 . Impact Corruptions 3 | . . . . . . . . . . . . . . . . . . . . . . . . 1 . . . 2 . Robots Melted 3 | . . . . . . . . . 1 . . . . . . . . . . . . . 1 1 . . . . . Combat Hostiles 3 | . . . . . . . . . 1 . . . . . . . . . . . . . 1 1 . . . . . Parts Melted 29 | . . 2 4 . 1 3 . . 5 . 1 . . . . . . 1 . 4 . . 6 2 . . . . . Heat Transferred 18389 | . 333 2738 1813 962 518 333 . . 1414 . 259 . . . . . . 300 1046 1125 . 1100 1475 1486 350 100 1175 1862 . Parts Sabotaged 1 | . . . . . . . . . . . . . . . . . . . 1 . . . . . . . . . . Parts Stolen . | . . . . . . . . . . . . . . . . . . . . . . . . . . . . . . Parts Stripped . | . . . . . . . . . . . . . . . . . . . . . . . . . . . . . . Power Chain Reactions . | . . . . . . . . . . . . . . . . . . . . . . . . . . . . . . Alert | -11 -10 -10 -8 -8 -7 -7 -7 -7 -7 -6 -6 -6 -6 -6 -5 -5 -5 -5 -5 -4 -4 -4 -4 -4 -4 -4 -4 -3 -2 ------- Run | Yrd Mat Sub Mat Sto Fac Low Low Zio Dee Pro Fac Low Low Dat Pro Fac Upp Upp War Pro Fac Was Fac Ext Cet Arc Hub Res Res Maximum Alert Level 4 | . . . 1 2 3 . . . . . . . . . . . . . . . . . 3 4 3 1 4 3 2 Low Security (%) 41 | . 100 . 96 48 . . . . . . 100 . . . . 100 . . . . 100 100 2 . . 82 27 . . Level 1 19 | . . . 3 29 42 . . . . . . . . . . . . . . . . . 56 44 . 17 2 . . Level 2 25 | . . . . 21 22 . . . . . . . . . . . . . . . . . 28 26 85 . 3 88 100 Level 3 13 | . . . . . 34 . . . . . . . . . . . . . . . . . 12 20 14 . 61 11 . Level 4 1 | . . . . . . . . . . . . . . . . . . . . . . . . 8 . . 4 . . Level 5 . | . . . . . . . . . . . . . . . . . . . . . . . . . . . . . . High Security . | . . . . . . . . . . . . . . . . . . . . . . . . . . . . . . Max Security . | . . . . . . . . . . . . . . . . . . . . . . . . . . . . . . Peak Influence 1348 | . 142 . 207 564 942 . . . . . 33 . . . . 32 . . . . 150 31 730 1132 734 232 1348 821 461 Initial 689 | . . . . 62 241 . . . . . 23 . . . . 28 . . . . 150 31 . 345 620 207 . 689 461 Average 338 | . 23 . 98 242 515 . . . . . 13 . . . . 3 . . . . 120 2 421 562 623 108 624 582 445 Influence Increases 10522 | . 381 160 461 730 1355 191 75 . . 45 72 30 60 . 45 61 15 50 405 359 150 6 1583 1391 300 35 1830 732 . Destroy 0b10 Robot/C 4780 | . 240 120 280 380 580 160 . . . . . . . . . . . 40 300 220 . . 660 700 120 . 640 340 . Destroy 0b10 Robot/NC 285 | . 20 . 35 30 60 . . . . . 10 . . . . . . . . 10 . . 45 10 5 5 20 35 . Destroy Leader 828 | . 54 10 44 74 148 20 . . . . 2 . . . . . . 10 . 20 . . 134 72 10 . 154 76 . Allied During Kill 2012 | . . . . 119 439 11 . . . . . . . . . . . . . 4 . . 308 511 132 5 476 7 . Trap Triggered on 0b10 30 | . . . . . 30 . . . . . . . . . . . . . . . . . . . . . . . . Successful Hack 221 | . 21 . 32 11 36 . . . . . 5 . . . . 27 . . . . . . 36 34 . . 12 7 . Select Force Hacks 30 | . 30 . . . . . . . . . . . . . . . . . . . . . . . . . . . . Disable Machine 405 | . . . 60 45 15 . . . . . . . . . . . . . . . . . 150 . 15 15 60 45 . Anti-Garrison Action 150 | . . . . . . . . . . . . . . . . . . . . . . . . . . . 150 . . Destroy Structure 671 | . 1 . 10 26 2 . . . . . 10 . . . . 4 . . . . . 6 220 34 18 10 258 72 . Advance Influence 150 | . . . . . . . . . . . . . . . . . . . . . 150 . . . . . . . . Partial Spotted 75 | . . . . . . . . . . . 45 . . . . 30 . . . . . . . . . . . . . Lose Combat Pursuer 885 | . 15 30 . 45 45 . 75 . . 45 . 30 60 . 45 . 15 . 105 105 . . 30 30 . . 60 150 . Influence Decreases 10091 | . 255 286 312 347 957 689 289 218 . 8 81 28 46 44 . 82 34 55 70 694 60 96 876 990 890 553 516 1225 390 Entered New Map 3730 | . . 62 . 87 291 345 83 218 . . 14 11 6 44 . 17 10 2 . 335 . 59 . 362 488 311 . 625 360 Time Decay 4851 | . 225 194 312 230 446 254 206 . . 8 67 17 40 . . 65 24 53 70 329 60 37 486 518 262 242 206 470 30 Lost Part 500 | . 30 30 . 30 30 10 . . . . . . . . . . . . . 30 . . 70 50 20 . 90 110 . Lost Ally 1010 | . . . . . 190 80 . . . . . . . . . . . . . . . . 320 60 120 . 220 20 . Squads Dispatched 55 | . 2 . 1 4 12 . . . . . 1 . . . . 2 . . . . . . 8 4 1 . 14 5 1 Investigation 12 | . 2 . 1 . 4 . . . . . 1 . . . . . . . . . . . 2 . 1 . . . 1 Extermination 8 | . . . . . 2 . . . . . . . . . . 1 . . . . . . 2 . . . 1 2 . Reinforcement 16 | . . . . 2 2 . . . . . . . . . . 1 . . . . . . 3 2 . . 5 1 . Assault 8 | . . . . . . . . . . . . . . . . . . . . . . . 1 2 . . 3 2 . Garrison 11 | . . . . 2 4 . . . . . . . . . . . . . . . . . . . . . 5 . . Intercept . | . . . . . . . . . . . . . . . . . . . . . . . . . . . . . . Searches Triggered . | . . . . . . . . . . . . . . . . . . . . . . . . . . . . . . Data Miner Redirects 2 | . . . . . . . . . . . . . . . . . . . . . . . 1 1 . . . . . Construction Impeded 3 | . . . . . . . . . . . . . . . . . . . . . . . 1 1 . . . 1 . Haulers Reinforced 2 | . . . . . 1 . . . . . . . . . . . . . . . . . . . . . 1 . . Active Scanning Responses . | . . . . . . . . . . . . . . . . . . . . . . . . . . . . . . Cargo Convoy Interrupts 1 | . . . . . . . . . . . . . . . . . . . . . . . . . . . . 1 . Stealth | -11 -10 -10 -8 -8 -7 -7 -7 -7 -7 -6 -6 -6 -6 -6 -5 -5 -5 -5 -5 -4 -4 -4 -4 -4 -4 -4 -4 -3 -2 --------- Run | Yrd Mat Sub Mat Sto Fac Low Low Zio Dee Pro Fac Low Low Dat Pro Fac Upp Upp War Pro Fac Was Fac Ext Cet Arc Hub Res Res Distress Signals 19 | . . . 2 4 1 . . . . . . . . . . . . . . . . . 3 1 2 . 1 4 1 Communications Jammed . | . . . . . . . . . . . . . . . . . . . . . . . . . . . . . . Distress Signals . | . . . . . . . . . . . . . . . . . . . . . . . . . . . . . . Times Spotted 491 | . 21 14 22 28 35 8 2 . 46 12 1 6 3 . 8 7 7 2 30 22 . 6 43 39 6 . 57 58 8 Peak Tracking Total 38 | . 4 4 4 8 4 4 5 . 38 11 1 7 4 . 8 6 7 1 9 5 . 2 7 7 5 . 12 15 8 Tactical Retreats 38 | . 1 1 . 2 3 . 3 . 1 1 . 1 2 . 1 . 1 . 4 4 . . 2 2 . . 3 6 . Traps | -11 -10 -10 -8 -8 -7 -7 -7 -7 -7 -6 -6 -6 -6 -6 -5 -5 -5 -5 -5 -4 -4 -4 -4 -4 -4 -4 -4 -3 -2 ------- Run | Yrd Mat Sub Mat Sto Fac Low Low Zio Dee Pro Fac Low Low Dat Pro Fac Upp Upp War Pro Fac Was Fac Ext Cet Arc Hub Res Res Traps Triggered 9 | . . . 2 1 . . . . . . 1 . . . . . . . . . 1 . . 1 . . . 2 1 Indirectly . | . . . . . . . . . . . . . . . . . . . . . . . . . . . . . . Trap Hack Attempts . | . . . . . . . . . . . . . . . . . . . . . . . . . . . . . . Triggered . | . . . . . . . . . . . . . . . . . . . . . . . . . . . . . . Disarmed . | . . . . . . . . . . . . . . . . . . . . . . . . . . . . . . Reprogrammed 13 | . . . . . 13 . . . . . . . . . . . . . . . . . . . . . . . . Reused 3 | . . . . . 3 . . . . . . . . . . . . . . . . . . . . . . . . Traps Extracted . | . . . . . . . . . . . . . . . . . . . . . . . . . . . . . . Installed . | . . . . . . . . . . . . . . . . . . . . . . . . . . . . . . Triggered 3 | . . . . . 3 . . . . . . . . . . . . . . . . . . . . . . . . Machines | -11 -10 -10 -8 -8 -7 -7 -7 -7 -7 -6 -6 -6 -6 -6 -5 -5 -5 -5 -5 -4 -4 -4 -4 -4 -4 -4 -4 -3 -2 ---------- Run | Yrd Mat Sub Mat Sto Fac Low Low Zio Dee Pro Fac Low Low Dat Pro Fac Upp Upp War Pro Fac Was Fac Ext Cet Arc Hub Res Res Machines Disabled 36 | . . 1 4 3 1 . . 3 2 . . . . . . . . . 1 . . . 10 1 1 1 5 3 . Max in Single Turn 4 | . . 1 1 2 1 . . 1 1 . . . . . . . . . 1 . . . 4 . 1 1 2 1 . Garrison Access 4 | . . . . 1 2 . . . . . . . . . . . . . . . . . . . . . 1 . . Network Hub 1 | . . . . . . . . . . . . . . . . . . . . . . . . . . . 1 . . Machines Repaired . | . . . . . . . . . . . . . . . . . . . . . . . . . . . . . . Machines Dismantled 3 | . . . . . . . . 3 . . . . . . . . . . . . . . . . . . . . . Machines Sabotaged . | . . . . . . . . . . . . . . . . . . . . . . . . . . . . . . Overloaded Fab Kills . | . . . . . . . . . . . . . . . . . . . . . . . . . . . . . . Hacking | -11 -10 -10 -8 -8 -7 -7 -7 -7 -7 -6 -6 -6 -6 -6 -5 -5 -5 -5 -5 -4 -4 -4 -4 -4 -4 -4 -4 -3 -2 --------- Run | Yrd Mat Sub Mat Sto Fac Low Low Zio Dee Pro Fac Low Low Dat Pro Fac Upp Upp War Pro Fac Was Fac Ext Cet Arc Hub Res Res Machines Accessed 75 | . 8 1 7 5 16 1 1 . . . 5 . . 3 . 1 . 1 5 . 2 . 6 4 1 . 3 2 3 Terminals 47 | . 7 . 6 4 10 . . . . . 4 . . . . 1 . . . . 2 . 3 4 1 . 3 1 1 Fabricators 3 | . . . . . 1 . . . . . . . . . . . . . . . . . 2 . . . . . . Repair Stations . | . . . . . . . . . . . . . . . . . . . . . . . . . . . . . . Recycling Units 5 | . 1 . . . 1 . . . . . . . . . . . . . . . . . 1 . . . . . 2 Scanalyzers 3 | . . . 1 . 1 . . . . . . . . . . . . . . . . . . . . . . 1 . Garrison Access 5 | . . . . 1 3 . . . . . 1 . . . . . . . . . . . . . . . . . . Total Hacks 237 | . 22 9 14 14 66 1 1 . . . 13 . . 25 . 2 . 1 10 . 4 . 21 14 2 . 6 6 6 Successful 141 | . 11 9 10 4 38 1 1 . . . 5 . . 25 . 1 . 1 10 . . . 9 10 . . 2 2 2 Failed 95 | . 11 . 4 10 27 . . . . . 8 . . . . 1 . . . . 4 . 12 4 2 . 4 4 4 Catastrophic 21 | . 2 . 2 2 1 . . . . . 2 . . . . 1 . . . . 2 . 2 1 . . 3 . 3 Database Lockouts 1 | . . . . . 1 . . . . . . . . . . . . . . . . . . . . . . . . Manual 93 | . 15 . 10 6 23 . . . . . 8 . . . . 1 . . . . 2 . 13 7 1 . 2 3 2 Terminals 145 | . 21 . 12 12 42 . . . . . 10 . . . . 2 . . . . 4 . 15 14 2 . 6 3 2 Fabricators 9 | . . . . . 5 . . . . . . . . . . . . . . . . . 4 . . . . . . Repair Stations . | . . . . . . . . . . . . . . . . . . . . . . . . . . . . . . Recycling Units 8 | . 1 . . . 1 . . . . . . . . . . . . . . . . . 2 . . . . . 4 Scanalyzers 15 | . . . 2 . 10 . . . . . . . . . . . . . . . . . . . . . . 3 . Garrison Access 13 | . . . . 2 8 . . . . . 3 . . . . . . . . . . . . . . . . . . Terminal Hacks 78 | . 3 9 . 1 12 1 1 . . . 2 . . 25 . . . 1 10 . . . 5 6 . . 1 1 . Record 28 | . . 8 . . . . . . . . . . . 6 . . . . 9 . . . . 5 . . . . . Part Schematic 12 | . . . . 1 . . . . . . . . . 11 . . . . . . . . . . . . . . . Robot Schematic 5 | . . . . . . . . . . . . . . 5 . . . . . . . . . . . . . . . Prototype ID Bank 6 | . 1 . . . 2 . . . . . . . . 3 . . . . . . . . . . . . . . . Open Door 5 | . . . . . . 1 1 . . . . . . . . . . 1 1 . . . 1 . . . . . . Branch Access Points 5 | . 1 . . . 1 . . . . . 1 . . . . . . . . . . . 1 . . . . 1 . Machine Index 1 | . . . . . 1 . . . . . . . . . . . . . . . . . . . . . . . . Terminal Index 1 | . . . . . . . . . . . . . . . . . . . . . . . 1 . . . . . . Fabricator Index 1 | . . . . . . . . . . . . . . . . . . . . . . . 1 . . . . . . Locate Traps 5 | . 1 . . . 1 . . . . . . . . . . . . . . . . . 1 1 . . 1 . . Reprogram Traps 3 | . . . . . 3 . . . . . . . . . . . . . . . . . . . . . . . . Recall Extermination 1 | . . . . . 1 . . . . . . . . . . . . . . . . . . . . . . . . Registered Components 2 | . . . . . 1 . . . . . 1 . . . . . . . . . . . . . . . . . . Registered Prototypes 1 | . . . . . 1 . . . . . . . . . . . . . . . . . . . . . . . . Zone Layout 1 | . . . . . 1 . . . . . . . . . . . . . . . . . . . . . . . . Proto ID Catalog 1 | . . 1 . . . . . . . . . . . . . . . . . . . . . . . . . . . Fabricator Hacks 5 | . . . . . 3 . . . . . . . . . . . . . . . . . 2 . . . . . . Load Schematic 2 | . . . . . 1 . . . . . . . . . . . . . . . . . 1 . . . . . . Build 3 | . . . . . 2 . . . . . . . . . . . . . . . . . 1 . . . . . . Repair Station Hacks . | . . . . . . . . . . . . . . . . . . . . . . . . . . . . . . Recycling Unit Hacks 3 | . . . . . 1 . . . . . . . . . . . . . . . . . . . . . . . 2 Report Inventory 1 | . . . . . 1 . . . . . . . . . . . . . . . . . . . . . . . . Retrieve Components 2 | . . . . . . . . . . . . . . . . . . . . . . . . . . . . . 2 Scanalyzer 10 | . . . 1 . 9 . . . . . . . . . . . . . . . . . . . . . . . . Insert Component 3 | . . . . . 3 . . . . . . . . . . . . . . . . . . . . . . . . Analyze 2 | . . . . . 2 . . . . . . . . . . . . . . . . . . . . . . . . Retrieve Study 5 | . . . 1 . 4 . . . . . . . . . . . . . . . . . . . . . . . . Garrison Access Hacks 3 | . . . . 1 2 . . . . . . . . . . . . . . . . . . . . . . . . Seal Access 3 | . . . . 1 2 . . . . . . . . . . . . . . . . . . . . . . . . Unauthorized Hacks 42 | . 8 . 9 2 11 . . . . . 3 . . . . 1 . . . . . . 2 4 . . 1 1 . Terminals 41 | . 7 . 9 2 11 . . . . . 3 . . . . 1 . . . . . . 2 4 . . 1 1 . Assimilate 6 | . . . 2 . 3 . . . . . . . . . . 1 . . . . . . . . . . . . . Botnet 9 | . 1 . 1 . 1 . . . . . 2 . . . . . . . . . . . 1 1 . . 1 1 . Operators 6 | . 1 . 1 1 1 . . . . . 1 . . . . . . . . . . . 1 . . . . . . Skim 20 | . 5 . 5 1 6 . . . . . . . . . . . . . . . . . . 3 . . . . . Fabricators . | . . . . . . . . . . . . . . . . . . . . . . . . . . . . . . Repair Stations . | . . . . . . . . . . . . . . . . . . . . . . . . . . . . . . Recycling Units 1 | . 1 . . . . . . . . . . . . . . . . . . . . . . . . . . . . Tunnel 1 | . 1 . . . . . . . . . . . . . . . . . . . . . . . . . . . . Scanalyzers . | . . . . . . . . . . . . . . . . . . . . . . . . . . . . . . Garrison Access . | . . . . . . . . . . . . . . . . . . . . . . . . . . . . . . Data Cores Recovered 5 | . 1 . 1 . 2 . . . . . . . . . . . . . . . . . . . . . . 1 . Used 3 | . . . 1 . 2 . . . . . . . . . . . . . . . . . . . . . . . . Hacking Detections 54 | . 7 . 6 3 13 . . . . . 5 . . . . 1 . . . . 2 . 6 3 1 . 3 2 2 Full Trace Events 11 | . 1 . . 2 4 . . . . . 1 . . . . . . . . . . . 1 . 1 . . . 1 Feedback Events . | . . . . . . . . . . . . . . . . . . . . . . . . . . . . . . Feedback Blocked . | . . . . . . . . . . . . . . . . . . . . . . . . . . . . . . Robot Schematics Acquired 9 | . . . . . . . . 4 . . . . . 5 . . . . . . . . . . . . . . . Robots Built 3 | . . . . . 3 . . . . . . . . . . . . . . . . . . . . . . . . Authchips . | . . . . . . . . . . . . . . . . . . . . . . . . . . . . . . Time 58 | . . . . . 58 . . . . . . . . . . . . . . . . . . . . . . . . Total Robot Build Rating 9 | . . . . . 9 . . . . . . . . . . . . . . . . . . . . . . . . Part Schematics Acquired 29 | . . . . 1 2 . . 15 . . . . . 11 . . . . . . . . . . . . . . . Parts Built 3 | . . . . . 2 . . . . . . . . . . . . . . . . . 1 . . . . . . Authchips . | . . . . . . . . . . . . . . . . . . . . . . . . . . . . . . Time 81 | . . . . . 31 . . . . . . . . . . . . . . . . . 50 . . . . . . Total Part Build Rating 9 | . . . . . 4 . . . . . . . . . . . . . . . . . 5 . . . . . . Part Studies Acquired 5 | . . . 1 . 4 . . . . . . . . . . . . . . . . . . . . . . . . Parts Repaired . | . . . . . . . . . . . . . . . . . . . . . . . . . . . . . . Time . | . . . . . . . . . . . . . . . . . . . . . . . . . . . . . . Parts Recycled . | . . . . . . . . . . . . . . . . . . . . . . . . . . . . . . Recycled Matter . | . . . . . . . . . . . . . . . . . . . . . . . . . . . . . . Retrieved Matter . | . . . . . . . . . . . . . . . . . . . . . . . . . . . . . . Retrieved Components 2 | . . . . . . . . . . . . . . . . . . . . . . . . . . . . . 2 Parts Scanalyzed 2 | . . . . . 2 . . . . . . . . . . . . . . . . . . . . . . . . Part Schematics Acquired 2 | . . . . . 2 . . . . . . . . . . . . . . . . . . . . . . . . Parts Damaged . | . . . . . . . . . . . . . . . . . . . . . . . . . . . . . . Bothacking | -11 -10 -10 -8 -8 -7 -7 -7 -7 -7 -6 -6 -6 -6 -6 -5 -5 -5 -5 -5 -4 -4 -4 -4 -4 -4 -4 -4 -3 -2 ------------ Run | Yrd Mat Sub Mat Sto Fac Low Low Zio Dee Pro Fac Low Low Dat Pro Fac Upp Upp War Pro Fac Was Fac Ext Cet Arc Hub Res Res Used RIF Installer . | . . . . . . . . . . . . . . . . . . . . . . . . . . . . . . Robots Hacked . | . . . . . . . . . . . . . . . . . . . . . . . . . . . . . . Non-combat . | . . . . . . . . . . . . . . . . . . . . . . . . . . . . . . Combat . | . . . . . . . . . . . . . . . . . . . . . . . . . . . . . . Robot Hacks Applied . | . . . . . . . . . . . . . . . . . . . . . . . . . . . . . . Relay Couplers Released . | . . . . . . . . . . . . . . . . . . . . . . . . . . . . . . Fabnet Peak Effective % . | . . . . . . . . . . . . . . . . . . . . . . . . . . . . . . Robots Rewired 8 | . . . . . . . . . . . . . . . . . . . . . . . . 8 . . . . . Allies Hacked 2 | . . . . . 1 . . . . . . . . . . . . . . . . . 1 . . . . . . Hacks Repelled . | . . . . . . . . . . . . . . . . . . . . . . . . . . . . . . Allies | -11 -10 -10 -8 -8 -7 -7 -7 -7 -7 -6 -6 -6 -6 -6 -5 -5 -5 -5 -5 -4 -4 -4 -4 -4 -4 -4 -4 -3 -2 -------- Run | Yrd Mat Sub Mat Sto Fac Low Low Zio Dee Pro Fac Low Low Dat Pro Fac Upp Upp War Pro Fac Was Fac Ext Cet Arc Hub Res Res Total Allies 70 | . . . . 10 4 . . 8 . . . . . . . 1 . . . 1 . 19 1 20 5 . . 1 . Largest Group 19 | . . . . 10 10 4 . 8 4 . . . . . . 1 . . . 1 . 19 19 17 17 15 13 1 . Highest-Rated Group 1010 | . . . . 173 183 77 . 262 102 . . . . . . 26 . . . 30 . 684 684 833 1010 1010 822 89 . Highest-Rated Ally 159 | . . . . 29 29 29 . 41 31 . . . . . . 26 . . . 30 . 50 50 159 159 159 96 89 . Total Orders 6 | . . . . 2 4 . . . . . . . . . . . . . . . . . . . . . . . . STAY 2 | . . . . . 2 . . . . . . . . . . . . . . . . . . . . . . . . FOLLOW 3 | . . . . 1 2 . . . . . . . . . . . . . . . . . . . . . . . . GUARD 1 | . . . . 1 . . . . . . . . . . . . . . . . . . . . . . . . . Ally Attacks 698 | . . . . 17 195 18 . . 53 . . . . . . . . . . 4 . . 131 105 52 . 117 6 . Total Damage 14277 | . . . . 198 2295 187 . . 542 . . . . . . . . . . 172 . . 3140 2759 1209 . 3634 141 . Kills 87 | . . . . 4 22 1 . . 5 . . . . . . . . . . 2 . . 12 16 5 . 20 . . Allies Corrupted . | . . . . . . . . . . . . . . . . . . . . . . . . . . . . . . Allies Melted 5 | . . . . . . . . . 1 . . . . . . . . . 3 . . . 1 . . . . . . Intel | -11 -10 -10 -8 -8 -7 -7 -7 -7 -7 -6 -6 -6 -6 -6 -5 -5 -5 -5 -5 -4 -4 -4 -4 -4 -4 -4 -4 -3 -2 ------- Run | Yrd Mat Sub Mat Sto Fac Low Low Zio Dee Pro Fac Low Low Dat Pro Fac Upp Upp War Pro Fac Was Fac Ext Cet Arc Hub Res Res Active Infowar (turns) 10250 | . . . . . . 549 428 1523 219 178 184 94 87 24 32 540 103 . 1 . 135 567 1262 1427 578 562 629 1128 . Optics 1 | . . . . . . . . . . . . . . . . . . . . . . . . . . . . 1 . Sensors 2773 | . . . . . . 549 428 1523 53 . . . . . . . . . . . . . . . . . . 220 . Terrain 1408 | . . . . . . . . . 166 178 184 94 87 24 32 540 103 . . . . . . . . . . . . Decoding 6288 | . . . . . . . . . . . . . . . . . . . . . 135 567 1262 1427 578 562 629 1128 . Cloaking 1 | . . . . . . . . . . . . . . . . . . . 1 . . . . . . . . . . Robot Analysis Total . | . . . . . . . . . . . . . . . . . . . . . . . . . . . . . . Derelict Logs Recovered 9 | . . 1 . . . . 1 2 . 1 . 1 1 . . . . 2 . . . . . . . . . . . Drone Launches . | . . . . . . . . . . . . . . . . . . . . . . . . . . . . . . Drone Recoveries . | . . . . . . . . . . . . . . . . . . . . . . . . . . . . . . Decoded 0b10 Intel 144 | . . . . . . . . . . . . . . . . . . . . . 3 9 36 36 6 6 19 29 . Traps 7 | . . . . . . . . . . . . . . . . . . . . . . . 4 . . . 1 2 . Emergency Access 13 | . . . . . . . . . . . . . . . . . . . . . 1 . 1 5 . . 1 5 . Items 86 | . . . . . . . . . . . . . . . . . . . . . 2 8 25 23 2 . 9 17 . Machines 22 | . . . . . . . . . . . . . . . . . . . . . . . 3 6 3 3 3 4 . Patrols 4 | . . . . . . . . . . . . . . . . . . . . . . . . 2 . . 1 1 . Guards 4 | . . . . . . . . . . . . . . . . . . . . . . . 2 . . . 2 . . Exits 8 | . . . . . . . . . . . . . . . . . . . . . . 1 1 . 1 3 2 . . Exploration | -11 -10 -10 -8 -8 -7 -7 -7 -7 -7 -6 -6 -6 -6 -6 -5 -5 -5 -5 -5 -4 -4 -4 -4 -4 -4 -4 -4 -3 -2 ------------- Run | Yrd Mat Sub Mat Sto Fac Low Low Zio Dee Pro Fac Low Low Dat Pro Fac Upp Upp War Pro Fac Was Fac Ext Cet Arc Hub Res Res Turns Passed 24508 | . 1203 1846 1025 495 1109 551 428 1523 3925 525 186 94 87 24 32 540 150 1546 1339 1443 135 567 1262 1427 578 562 629 1198 79 Spaces Moved 14997 | 1 618 865 810 346 943 464 435 1382 2185 476 489 364 302 99 128 243 276 490 726 374 110 355 570 785 166 57 292 497 149 Core 305 | . . . . . . . . . 10 . . . . . . . 12 . . . . . . . . . . 134 149 Treads 1781 | . 478 865 2 . . . . . 436 . . . . . . . . . . . . . . . . . . . . Legs 4429 | 1 140 . . . . . . . . . . . . . . . . 490 726 374 110 355 570 785 166 57 292 363 . Wheels 4570 | . . . 808 346 943 464 435 1382 192 . . . . . . . . . . . . . . . . . . . . Hover 3912 | . . . . . . . . . 1547 476 489 364 302 99 128 243 264 . . . . . . . . . . . . Flight . | . . . . . . . . . . . . . . . . . . . . . . . . . . . . . . Fastest Speed 24 | 120 120 160 85 95 95 95 95 95 24 24 24 24 24 24 24 24 24 140 120 120 122 122 130 130 135 135 135 50 50 Average Speed 106 | 120 150 182 92 95 95 95 95 95 97 24 24 24 24 24 24 24 46 183 162 121 122 129 130 149 154 135 163 130 50 Slowest Speed 375 | 120 160 240 240 95 95 95 95 95 240 24 52 24 24 24 24 24 375 210 183 176 122 176 176 183 186 135 185 186 50 Overloaded Moves . | . . . . . . . . . . . . . . . . . . . . . . . . . . . . . . Propulsion Burnouts . | . . . . . . . . . . . . . . . . . . . . . . . . . . . . . . Robots Hopped . | . . . . . . . . . . . . . . . . . . . . . . . . . . . . . . Potential Cave-ins 5 | . . . . . . . . . . . . . . . . . 2 . . . . . . . . . 3 . . Cave-ins Triggered . | . . . . . . . . . . . . . . . . . . . . . . . . . . . . . . Exploration Rate (%) 50 | 2 69 56 57 63 24 56 58 90 83 78 13 57 51 70 30 8 51 73 88 53 3 88 20 85 60 54 49 15 8 Regions Visited 29 Branch Regions 19 Pre-discovered Areas 14 | . 3 2 2 1 1 . . 3 . 1 . . . 1 . . . . . . . . . . . . . . . Known Exits Taken 18 | . 1 1 1 1 1 1 1 1 . 1 1 . 1 . 1 1 . . . . . . 1 1 1 1 1 . . Unknown Exits Taken 9 | 1 . . . . . . . . 1 . . 1 . 1 . . 1 1 1 1 . . . . . . . 1 . Scrap Searched 16 | . . . . . . 1 2 4 . 2 . 1 2 . . . 3 1 . . . . . . . . . . . Spaces Dug 50 | . 1 . . . . . . . 4 . 9 . 2 . . 2 9 . 4 . . . 2 . . . 8 9 . Terrain Destroyed 406 | . 1 . 8 22 . . . . 15 . 10 . 2 . . 2 10 2 11 14 . 3 71 16 2 5 178 34 . Melee . | . . . . . . . . . . . . . . . . . . . . . . . . . . . . . . Projectile 181 | . 1 . 8 2 . . . . 14 . 10 . 2 . . 2 10 2 11 14 . 3 23 16 2 5 22 34 . AOE 224 | . . . . 20 . . . . . . . . . . . . . . . . . . 48 . . . 156 . . Terrain Rammed . | . . . . . . . . . . . . . . . . . . . . . . . . . . . . . . Walls Destroyed . | . . . . . . . . . . . . . . . . . . . . . . . . . . . . . . Machines Disabled . | . . . . . . . . . . . . . . . . . . . . . . . . . . . . . . Actions | -11 -10 -10 -8 -8 -7 -7 -7 -7 -7 -6 -6 -6 -6 -6 -5 -5 -5 -5 -5 -4 -4 -4 -4 -4 -4 -4 -4 -3 -2 --------- Run | Yrd Mat Sub Mat Sto Fac Low Low Zio Dee Pro Fac Low Low Dat Pro Fac Upp Upp War Pro Fac Was Fac Ext Cet Arc Hub Res Res Total 22212 | . 782 1010 1001 453 1064 535 451 1535 3856 884 535 369 309 98 128 721 291 1126 824 1314 112 417 986 957 471 525 361 944 153 Wait 5729 | . 56 50 98 57 35 35 10 103 1381 407 19 6 2 . . 477 1 610 12 879 . 31 316 75 289 441 4 335 . Move 14970 | . 617 864 809 345 942 463 434 1381 2184 475 488 363 301 98 127 242 275 489 725 373 110 354 569 784 165 56 292 496 149 Hop . | . . . . . . . . . . . . . . . . . . . . . . . . . . . . . . Pick Up 219 | . 19 8 22 3 10 5 4 6 93 . 4 . . . . . 1 12 6 . 1 3 2 5 1 . 7 7 . Fast Attach 60 | . . . 1 5 2 . . 3 27 . 1 . . . . . . 1 8 . . . 2 1 1 3 . 4 1 Attach 104 | . 8 7 12 2 7 4 . . 32 . 5 . . . 1 . . 2 1 4 1 2 4 2 . . 1 8 1 Detach 111 | . 4 . 8 . 3 3 . . 17 . . . . . . . 2 2 13 13 . 2 14 1 3 12 . 13 1 Swap 49 | . 6 6 7 . . 2 . 4 8 2 . . . . . . 1 . 2 . . . 3 2 . . 2 4 . Drop 120 | . 6 2 8 6 8 . 3 9 46 . . . . . . . 1 3 10 1 . 1 1 3 2 2 2 5 1 Fire 708 | . 58 73 36 27 57 23 . 2 68 . 18 . 6 . . 2 10 7 47 30 . 24 54 40 10 11 51 54 . Melee 33 | . . . . . . . . . . . . . . . . . . . . 7 . . 18 2 . . . 6 . Ram 2 | . . . . . . . . . . . . . . . . . . . . . . . . . . . . 2 . Kick 13 | . 1 . . . . . . . . . . . . . . . . . . . . . 3 2 . . 2 5 . Crush 7 | . 7 . . . . . . . . . . . . . . . . . . . . . . . . . . . . Escape Stasis 17 | . . . . 8 . . . . . . . . . . . . . . . . . . . 4 . . . 5 . Rewire 43 | . . . . . . . . . . . . . . . . . . . . 7 . . . 36 . . . . . Trap . | . . . . . . . . . . . . . . . . . . . . . . . . . . . . . . Miscellaneous 27 | . . . . . . . . 27 . . . . . . . . . . . . . . . . . . . . . Route ------- -11/Scrapyard -10/Materials (discovered 5 exits: *Mat x3 / Min / *Sub) -10/Subcaves (discovered 2 exits: *Mat x2) -8/Materials (discovered 2 exits: *Fac / *Sto) -8/Storage -7/Factory (discovered 5 exits: *Fac x3 / *Low x2) -7/Lower Caves -7/Lower Caves (discovered 2 exits: *Fac / *Zio) -7/Zion (discovered 2 exits: *Dee / [*Pro]) -7/Deep Caves -6/Proximity Caves -6/Factory (discovered 3 exits: *Fac / *Low x2) -6/Lower Caves -6/Lower Caves (discovered 2 exits: Fac / *Dat) -6/Data Miner -5/Proximity Caves -5/Factory (discovered 2 exits: *Upp x2) -5/Upper Caves -5/Upper Caves -5/Warlord -4/Proximity Caves -4/Factory (discovered 2 exits: Ext / Arm) -4/Waste -4/Factory (discovered 7 exits: *Res x2 / Upp x2 / *Ext x2 / Arm) -4/Extension (discovered 3 exits: *Res x2 / *Cet) -4/Cetus (discovered 2 exits: Res / *Arc) -4/Archives (discovered 3 exits: Res / *Hub x2) -4/Hub_04(d) (discovered 3 exits: *Res x3) -3/Research (discovered 3 exits: *Res / Qua x2) -2/Research History --------- Turn | Location | Event 1 | -11/Scrapyard | Discovered new exit (range 0) 1 | -11/Scrapyard | Entered Materials 148 | -10/Materials | Discovered new exit (range 15) 200 | -10/Materials | Discovered new exit (range 13) 311 | -10/Materials | Build established: Mutant 317 | -10/Materials | Identified exit to Mines 398 | -10/Materials | Learned Storage emergency access door positions 467 | -10/Materials | Learned location of Subcaves (-10) 526 | -10/Materials | Identified exit to Materials 612 | -10/Materials | Learned location of 1 exit from Storage 639 | -10/Materials | Learned location of Recycling (-8) 654 | -10/Materials | Identified exit to Subcaves 654 | -10/Materials | Learned location of 1 exit from Materials 764 | -10/Materials | Learned 2 Storage zone layouts 1204 | -10/Materials | Entered Subcaves 1205 | -10/Subcaves | Approached by a straggling Scientist 1205 | -10/Subcaves | Identified exit to Materials 1336 | -10/Subcaves | Lost 3 parts (1p2n) 1355 | -10/Subcaves | Learned location of Storage (-8) 1555 | -10/Subcaves | Core integrity fell below 50% 1596 | -10/Subcaves | Build established: Scavenger-Mutant 1851 | -10/Subcaves | Learned location of Zion (-7) 1851 | -10/Subcaves | Met a Zionite searching for "candidates" 1853 | -10/Subcaves | Shifting Twisted Machinery released Mak. Sword 1854 | -10/Subcaves | Shifting Twisted Machinery released Battle Cannon 2106 | -10/Subcaves | Shifting Twisted Machinery released Battle Cannon 2165 | -10/Subcaves | Build established: Mutant 2222 | -10/Subcaves | Shifting Twisted Machinery released Battle Cannon 2384 | -10/Subcaves | Visited 4L-MR0's lab 2402 | -10/Subcaves | Found Prototype Device 2409 | -10/Subcaves | Found Maxwheels 2909 | -10/Subcaves | Shifting Twisted Machinery released Battle Cannon 2921 | -10/Subcaves | Shifting Twisted Machinery released Sub. Monowheel 3002 | -10/Subcaves | Core integrity fell below 20% 3050 | -10/Subcaves | Entered Materials 3050 | -8/Materials | Evolved 4 slots: Propulsion x2, Utility x2 3051 | -8/Materials | Identified exit to Storage 3052 | -8/Materials | Identified exit to Factory 3057 | -8/Materials | Attached Maxwheels, gained temporary slots: Weapon x2 3430 | -8/Materials | Build established: Gunner 3929 | -8/Materials | Learned location of 1 exit from Lower Caves 3966 | -8/Materials | Learned Factory terminal intel 3992 | -8/Materials | Learned Factory trap positions 4009 | -8/Materials | Learned 2 Lower Caves zone layouts 4010 | -8/Materials | Learned Factory emergency access door positions 4011 | -8/Materials | Learned location of 1 exit from Recycling 4012 | -8/Materials | Learned 4 Lower Caves zone layouts 4028 | -8/Materials | Learned Storage trap positions 4075 | -8/Materials | Entered Storage 4078 | -8/Storage | Loaded intel: 13 trap records 4243 | -8/Storage | Garrison activated, responded to threat 4360 | -8/Storage | Destroyed 8 combat bots 4395 | -8/Storage | Assisted by bots powering up and referring to "LRC-V3" 4436 | -8/Storage | Learned location of Armory (-4) 4570 | -8/Storage | Entered Factory 4570 | -7/Factory | Accompanied by 10 allies 4570 | -7/Factory | Evolved 2 slots: Utility x2 4571 | -7/Factory | Loaded intel: 92 trap records 4573 | -7/Factory | Loaded intel: 26 terminal locations 4696 | -7/Factory | Build established: Commander-Gunner 4892 | -7/Factory | Identified exit to Lower Caves 4969 | -7/Factory | Identified Sfc. Transmogrifier 4969 | -7/Factory | Central database locked down 5208 | -7/Factory | Discovered new exit (range 7) 5250 | -7/Factory | Identified exit to Factory 5266 | -7/Factory | Garrison activated, responded to threat 5284 | -7/Factory | Fabricated G-47 Trooper (x3) 5285 | -7/Factory | Build established: Commander-Mutant 5323 | -7/Factory | Fabricated Plasma Cutter (x2) 5330 | -7/Factory | Lost 3 allies 5332 | -7/Factory | Learned location of 1 exit from Cetus 5404 | -7/Factory | Learned Extension trap positions 5465 | -7/Factory | Learned location of 2 exits from Proximity Caves 5510 | -7/Factory | Lost 3 allies 5524 | -7/Factory | Garrison activated, responded to threat 5579 | -7/Factory | Learned location of Lower Caves (-6) 5618 | -7/Factory | Learned location of 1 exit from Extension 5665 | -7/Factory | Learned 2 Extension zone layouts 5679 | -7/Factory | Entered Lower Caves 5679 | -7/Lower Caves | Accompanied by 4 allies 5680 | -7/Lower Caves | Identified exit to Lower Caves 5783 | -7/Lower Caves | Lost 3 allies 6026 | -7/Lower Caves | Attracted the attention of an 0b10 checkpoint 6053 | -7/Lower Caves | Build established: Mutant 6230 | -7/Lower Caves | Entered another Lower Caves area 6274 | -7/Lower Caves | Discovered exit to Factory (range 4) 6318 | -7/Lower Caves | Learned Factory non-interactive machine intel 6394 | -7/Lower Caves | Spotted B-75 Beast 6651 | -7/Lower Caves | Discovered new exit (range 6) 6657 | -7/Lower Caves | Identified exit to Zion 6658 | -7/Lower Caves | Entered Zion 6695 | -7/Zion | System corruption cleaned by Quarantine Array 6732 | -7/Zion | Discovered new exit (range 14) 6835 | -7/Zion | Gained Derelict followers 7123 | -7/Zion | Found GAL Module 7220 | -7/Zion | Found CR-A16's Pointy Stick 7461 | -7/Zion | Found Prototype Launcher 7461 | -7/Zion | Identified Rocket Array 7726 | -7/Zion | Met Imprinter 7742 | -7/Zion | Imprinted 7744 | -7/Zion | Declared Zion's savior 7915 | -7/Zion | Discovered new exit (range 3) 7915 | -7/Zion | Saw the warning signs outside the Deep Caves entrance 7929 | -7/Zion | Identified exit to Deep Caves 8013 | -7/Zion | Learned Factory terminal intel 8181 | -7/Zion | Entered Deep Caves 8181 | -7/Deep Caves | Accompanied by 8 allies 8215 | -7/Deep Caves | Found Surveybot 24 Scanner 8217 | -7/Deep Caves | Found Surveybot 24 Chip 8322 | -7/Deep Caves | Z-Facility disabled 8333 | -7/Deep Caves | Attacked by Z-Imprinter 8382 | -7/Deep Caves | Lost 3 allies 8384 | -7/Deep Caves | Found Prototype Protection 8384 | -7/Deep Caves | Identified Zio. Weapon Casing 8388 | -7/Deep Caves | Lost 3 parts (1p2u) 9627 | -7/Deep Caves | Found Prototype Device 9629 | -7/Deep Caves | Identified Zio. Metafield Generator 9828 | -7/Deep Caves | Found Zio. Weapon Casing 10030 | -7/Deep Caves | Build established: Scavenger-Mutant 10284 | -7/Deep Caves | Core integrity fell below 50% 10401 | -7/Deep Caves | Found Prototype Protection 10401 | -7/Deep Caves | Identified Zio. Heavy Carapace 10444 | -7/Deep Caves | Found Zio. Weapon Casing 10664 | -7/Deep Caves | Found Zio. Weapon Casing 10676 | -7/Deep Caves | Lost 11 parts (1p2n4u4w) 11214 | -7/Deep Caves | Found Zio. Weapon Casing 11216 | -7/Deep Caves | Found Zio. Heavy Carapace 11224 | -7/Deep Caves | Found Zio. Heavy Carapace 11623 | -7/Deep Caves | Discovered new exit (range 6) 12048 | -7/Deep Caves | Spotted Golem 12049 | -7/Deep Caves | Exposed GOLEM chamber 12050 | -7/Deep Caves | Triggered Deep Caves wall 12054 | -7/Deep Caves | Found GOLEM Unit 12091 | -7/Deep Caves | Lost 5 parts (1p2n2u) 12106 | -7/Deep Caves | Entered Proximity Caves 12250 | -6/Proximity Caves | Received a Behemoth hack from an annoying Tinkerer 12299 | -6/Proximity Caves | Build established: Scavenger-Sprinter 12397 | -6/Proximity Caves | Spotted B-75 Beast 12621 | -6/Proximity Caves | Attracted the attention of an 0b10 base 12631 | -6/Proximity Caves | Entered Factory 12631 | -6/Factory | Evolved 2 slots: Power x1, Utility x1 12632 | -6/Factory | Loaded intel: 205 non-interactive machine locations 12633 | -6/Factory | Loaded intel: 26 terminal locations 12641 | -6/Factory | Discovered new exit (range 24) 12647 | -6/Factory | Discovered new exit (range 20) 12648 | -6/Factory | Discovered new exit (range 22) 12690 | -6/Factory | Identified exit to Lower Caves 12817 | -6/Factory | Entered Lower Caves 12889 | -6/Lower Caves | Discovered new exit (range 17) 12892 | -6/Lower Caves | Encountered a Warlord checkpoint 12893 | -6/Lower Caves | Learned Factory trap positions 12906 | -6/Lower Caves | Spotted B-75 Beast 12911 | -6/Lower Caves | Entered another Lower Caves area 12912 | -6/Lower Caves | Discovered new exit (range 10) 12933 | -6/Lower Caves | Identified exit to Data Miner 12998 | -6/Lower Caves | Entered Data Miner 12998 | -6/Data Miner | Discovered new exit (range 6) 13003 | -6/Data Miner | Met Data Miner 13007 | -6/Data Miner | Learned location of Section 7 (-3) 13007 | -6/Data Miner | Acquired the access code to Warlord's prototype stash 13011 | -6/Data Miner | Received God Mode back door access code from Data Miner 13022 | -6/Data Miner | Entered Proximity Caves 13023 | -5/Proximity Caves | Identified exit to Factory 13037 | -5/Proximity Caves | Attracted the attention of an 0b10 checkpoint 13054 | -5/Proximity Caves | Entered Factory 13054 | -5/Factory | Evolved 2 slots: Utility x2 13055 | -5/Factory | Identified exit to Upper Caves 13056 | -5/Factory | Loaded intel: 96 trap records 13319 | -5/Factory | Watched by a mysterious "MATRIX" hacker 13594 | -5/Factory | Entered Upper Caves 13650 | -5/Upper Caves | Attracted the attention of an 0b10 checkpoint 13675 | -5/Upper Caves | Spotted B-75 Beast 13682 | -5/Upper Caves | Discovered new exit (range 23) 13735 | -5/Upper Caves | Core integrity fell below 50% 13742 | -5/Upper Caves | Lost 11 parts (4n6u1w) 13744 | -5/Upper Caves | Entered another Upper Caves area 14012 | -5/Upper Caves | Build established: Mutant 14432 | -5/Upper Caves | Build established: Golem 14551 | -5/Upper Caves | Attracted the attention of an 0b10 checkpoint 14707 | -5/Upper Caves | Spotted B-75 Beast 14735 | -5/Upper Caves | Destroyed B-75 Beast 14978 | -5/Upper Caves | Learned Factory machine intel 15273 | -5/Upper Caves | Discovered new exit (range 5) 15290 | -5/Upper Caves | Entered Warlord 15437 | -5/Warlord | Learned Research stockpile data 15437 | -5/Warlord | Learned Quarantine stockpile data 15439 | -5/Warlord | Learned 4 Armory zone layouts 15441 | -5/Warlord | Learned Research security intel 15441 | -5/Warlord | Learned Armory recycling unit intel 15441 | -5/Warlord | Learned Research fabricator intel 15441 | -5/Warlord | Learned Research recycling unit intel 15614 | -5/Warlord | Rebuked by Warlord 15639 | -5/Warlord | Warlord's base attacked by MAIN.C 15989 | -5/Warlord | Warlord forces counterattacked 16225 | -5/Warlord | Found Prototype Energy Gun 16225 | -5/Warlord | Identified Vortex Rifle 16229 | -5/Warlord | Found Vortex Rifle 16287 | -5/Warlord | Found Prototype Reactor 16297 | -5/Warlord | Found Prototype Device 16299 | -5/Warlord | Identified Exp. Cloaking Device 16306 | -5/Warlord | Found Prototype Processor 16306 | -5/Warlord | Identified Exp. Armor Integrity Analyzer 16313 | -5/Warlord | Found Prototype Device 16313 | -5/Warlord | Identified Thermal Barrier 16314 | -5/Warlord | Warlord base infiltrated, sounded retreat 16319 | -5/Warlord | Found Prototype Hackware 16319 | -5/Warlord | Identified Ghost Barrier 16328 | -5/Warlord | Spotted Striker 16352 | -5/Warlord | Spotted Executioner 16357 | -5/Warlord | Lost 5 allies 16374 | -5/Warlord | Destroyed Executioner 16498 | -5/Warlord | Destroyed 8 combat bots 16579 | -5/Warlord | Build established: Hacker-Golem 16617 | -5/Warlord | Discovered new exit (range 12) 16621 | -5/Warlord | Lost 7 allies 16629 | -5/Warlord | Entered Proximity Caves 17088 | -4/Proximity Caves | Spotter reported a threat 17398 | -4/Proximity Caves | Discovered new exit (range 11) 18072 | -4/Proximity Caves | Entered Factory 18072 | -4/Factory | Evolved 2 slots: Utility x2 18073 | -4/Factory | Identified exit to Extension 18073 | -4/Factory | Identified exit to Armory 18074 | -4/Factory | Loaded intel: 248 machine locations 18207 | -4/Factory | Sucked down chute 18207 | -4/Factory | Entered Waste 18218 | -4/Waste | Spotted C-40 Crusher 18226 | -4/Waste | Destroyed C-40 Crusher 18247 | -4/Waste | Spotted C-40 Crusher 18260 | -4/Waste | Destroyed C-40 Crusher 18266 | -4/Waste | Spotted C-40 Crusher 18266 | -4/Waste | Spotted C-40 Crusher 18282 | -4/Waste | Destroyed C-40 Crusher 18313 | -4/Waste | Destroyed C-40 Crusher 18360 | -4/Waste | Spotted C-40 Crusher 18369 | -4/Waste | Destroyed C-40 Crusher 18403 | -4/Waste | Spotted C-40 Crusher 18490 | -4/Waste | Destroyed C-40 Crusher 18549 | -4/Waste | Identified exit to Factory 18562 | -4/Waste | Build established: Golem 18645 | -4/Waste | Warlord forces began an assault 18774 | -4/Waste | Entered Factory 18774 | -4/Factory | Accompanied by 19 allies 18825 | -4/Factory | Lost 4 allies 18888 | -4/Factory | Identified exit to Research 18899 | -4/Factory | Lost 3 allies 19012 | -4/Factory | Discovered exit to Research (range 16) 19069 | -4/Factory | Spotted B-86 Titan 19118 | -4/Factory | Revealed the true nature of CR-A16's Pointy Stick 19124 | -4/Factory | Destroyed B-86 Titan 19136 | -4/Factory | Lost 9 allies 19361 | -4/Factory | Identified exit to Upper Caves 19587 | -4/Factory | Destroyed 8 combat bots 19767 | -4/Factory | Lost 3 parts (1p1u1w) 19774 | -4/Factory | First assault squad dispatched 19804 | -4/Factory | Incoming assault squad redirected 19821 | -4/Factory | Fabricated Lgt. Regenerative Plating? 20036 | -4/Factory | Entered Extension 20037 | -4/Extension | Identified exit to Cetus 20040 | -4/Extension | Loaded intel: 7 trap records 20102 | -4/Extension | Rescued a captive Derelict 20102 | -4/Extension | Rescued a captive Derelict 20125 | -4/Extension | Rescued A7 20139 | -4/Extension | Rescued a captive Derelict 20141 | -4/Extension | Rescued a captive Derelict 20314 | -4/Extension | Rescued a captive Derelict 20689 | -4/Extension | Spotted B-86 Titan 20696 | -4/Extension | Spotted B-86 Titan 20701 | -4/Extension | Destroyed B-86 Titan 20715 | -4/Extension | Destroyed B-86 Titan 20818 | -4/Extension | Rescued a captive Derelict 20818 | -4/Extension | Rescued a captive Derelict 20971 | -4/Extension | Rescued a captive Derelict 20980 | -4/Extension | Rescued a captive Derelict 21036 | -4/Extension | First assault squad dispatched 21060 | -4/Extension | Incoming assault squad redirected 21086 | -4/Extension | Rescued a captive Derelict 21087 | -4/Extension | Rescued a captive Derelict 21123 | -4/Extension | Rescued a captive Derelict 21243 | -4/Extension | Build established: Commander-Golem 21355 | -4/Extension | Discovered exit to Research (range 10) 21463 | -4/Extension | Entered Cetus 21463 | -4/Cetus | Accompanied by 17 allies (A7) 21468 | -4/Cetus | Acquired a Cetus Manufacturing Module code from A7 21481 | -4/Cetus | Spotted Cetus Guard 21481 | -4/Cetus | Spotted Cetus Guard 21484 | -4/Cetus | Spotted Cetus Guard 21485 | -4/Cetus | Destroyed Cetus Guard 21494 | -4/Cetus | Spotted Cetus Guard 21501 | -4/Cetus | Allies destroyed Cetus Guard 21501 | -4/Cetus | Allies destroyed Cetus Guard 21506 | -4/Cetus | Destroyed Cetus Guard 21587 | -4/Cetus | Started Cetus Manufacturing Module 21612 | -4/Cetus | Manufactured an Enhanced Grunt 21637 | -4/Cetus | Manufactured an Enhanced Grunt 21662 | -4/Cetus | Manufactured an Enhanced Grunt 21670 | -4/Cetus | Lost 4 allies 21687 | -4/Cetus | Manufactured an Enhanced Grunt 21711 | -4/Cetus | Identified exit to Archives 21712 | -4/Cetus | Manufactured an Enhanced Grunt 21714 | -4/Cetus | Escorted A7 to Cetus Mainframe 22041 | -4/Cetus | Entered Archives 22041 | -4/Archives | Accompanied by 15 allies (A7) 22046 | -4/Archives | Received a hacking code to weaken MAIN.C 22266 | -4/Archives | Identified exit to Hub_04(d) 22550 | -4/Archives | Met Zhirov 22556 | -4/Archives | Reinforcements dispatched to Archives 22601 | -4/Archives | Reinforcements dispatched to Archives 22603 | -4/Archives | Entered Hub_04(d) 22603 | -4/Hub_04(d) | Accompanied by 13 allies 22757 | -4/Hub_04(d) | Discovered exit to Research (range 15) 22760 | -4/Hub_04(d) | Garrison activated, responded to threat 22793 | -4/Hub_04(d) | Allied Derelicts emerged from ambush trap array 22902 | -4/Hub_04(d) | Lost 12 allies 23032 | -4/Hub_04(d) | Garrison activated, responded to threat 23103 | -4/Hub_04(d) | First assault squad dispatched 23115 | -4/Hub_04(d) | Build established: Golem 23205 | -4/Hub_04(d) | Network Hub disabled 23208 | -4/Hub_04(d) | Spotted Lightning 23209 | -4/Hub_04(d) | Spotted Lightning 23210 | -4/Hub_04(d) | Spotted Lightning 23217 | -4/Hub_04(d) | System corruption reached 10% 23232 | -4/Hub_04(d) | Entered Research 23232 | -3/Research | Evolved 2 slots: Propulsion x1, Weapon x1 23235 | -3/Research | Loaded intel: 3 fabricator locations 23236 | -3/Research | Loaded intel: 5 recycling unit locations 23259 | -3/Research | Lost 6 parts (1n3u2w) 23982 | -3/Research | First assault squad dispatched 24239 | -3/Research | Discovered new exit (range 15) 24264 | -3/Research | Identified exit to Quarantine 24286 | -3/Research | Cargo convoy interrupted 24287 | -3/Research | Spotted Striker 24287 | -3/Research | Spotted Executioner 24321 | -3/Research | Destroyed Striker 24327 | -3/Research | System corruption reached 10% 24360 | -3/Research | Released all parts (15) 24372 | -3/Research | Core integrity fell below 50% 24389 | -3/Research | Lost 8 parts (3n2u3w) 24414 | -3/Research | Core integrity fell below 20% 24430 | -3/Research | Entered another Research area 24430 | -2/Research | Evolved 2 slots: Propulsion x1, Weapon x1 24456 | -2/Research | Spotted B-90 Cyclops 24497 | -2/Research | Spotted B-90 Cyclops 24509 | -2/Research | Self-destructed Last Messages --------------- GOAL=ESCAPE ALERT: All DSF locations entering lockdown mode. Connecting with Terminal... Current location identified: Research ALERT: Suspicious activity at Terminal R015. Dispatching Investigation squad. Connecting with Recycling Unit... >>Retrieve(Components) Retrieving 2 components... Adv. Launcher Guidance Computer Com. HERF Cannon Identified Arm. Medium Treads. Acquired Com. HERF Cannon. Dropped Com. HERF Cannon. Triggered Blade Trap. Massive razor-sharp blades shoot up from within the floor. U-05 Engineer lays Concrete. Slug penetrates Wall. Connecting with Recycling Unit... Map ----- +----------------------------------------------------+ | ?????????????????????????????????????????????????? | | ?????????????????????????????????????????????????? | | ?????????????????????????????????????????????????? | | ?????????????????????????????????????????????????? | | ?????????????????????????????????????????????????? | | ?????????????????????????????????????????????????? | | ?????????????????????????????????????????????????? | | ?????????????????????????????????????????????????? | | ????????????????????????????? ########???????????? | | ??????????????????????????? ???? | | ??????????????????????????? ?? | | ??????????????????????????? ?? | | ??????????????????????????? ""??" | | ??????????????????????????? """"" | | ??????????????????????????? """"" | | ??????????????????????????? """"" | | ???????????????????????????? | | ????????????????????????????? | | ?????????????????????????????? | | ??????????????????????########## != | | ??????????????????????# ! # != | | ??????????????????????# # ! | | ??????????????????????# + | | ??????????????????????# # | | ??????????????????????#""" # | | ??????????????????????#"Y@ ! # | | ??????????????????????#""" # ###+######### | | ??????????????????????# # # ????# | | ??????????????????????# # # ??# | | ??????????????????????########## # """" ##"" | | ???????????????????????????????# # """" ##"" | | ???????????????????????????????# # """" ##"" | | ???????????????????????????????# # """" ## | | ???????????????????????????????# # ?? ## | | ???????????????????????????????# # ??????#### | | ???????????????????????????????# # ?????????? | | ???????????????????????????????/ ###?????????? | | ???????????????????????????????# #???????????? | | ???????????????????????????????# ????????????? | | ???????????????????????????????? ????????????? | | ?????????????????????????????????? #????????????? | | ?????????????????????????????????????????????????? | | ?????????????????????????????????????????????????? | | ?????????????????????????????????????????????????? | | ?????????????????????????????????????????????????? | | ?????????????????????????????????????????????????? | | ?????????????????????????????????????????????????? | | ?????????????????????????????????????????????????? | | ?????????????????????????????????????????????????? | | ?????????????????????????????????????????????????? | +----------------------------------------------------+ Best States ------------- Heat Dissipation 91 Coolant Potential 50 Energy Generation 53 Energy Capacity 1350 Matter Stores 500 Matter Capacity 500 Sight Range 16 Robot Scan Range 16 Terrain Scan Range 24 Terrain Scan Density 2010 Cloak Strength 4 Power Amplification 20 Additional Mass Support 20 Armor Coverage 1600 Resistance: KI 15 Resistance: TH 15 Resistance: EX 15 Resistance: EM 15 Resistance: I 15 Resistance: S 15 Resistance: P 15 Propulsion Shielding 66 Weapon Shielding 100 Phase Shifting 15 Evasion (%) 78 Targeting Accuracy 8 Core Analysis 8 Armor Integrity Analysis 50 Recoil Reduction 2 Particle Charging 15 Offensive Hacking 20 Defensive Hacking 20 Item Schematics ----------------- Plasma Cutter | -8/Storage | Hacked System Shield | -7/Factory | Scanalyzed Hacking Suite | -7/Factory | Scanalyzed Hpw. Shock Rifle | -7/Zion | Archive Kinecellerator | -7/Zion | Archive Hvy. Ion Cannon | -7/Zion | Archive IFF Parser | -7/Zion | Archive Antigrav System | -7/Zion | Archive Adv. Signal Interpreter | -7/Zion | Archive Gauss Rifle | -7/Zion | Archive Gauss Cannon | -7/Zion | Archive Power Amplifier | -7/Zion | Archive Gatling Laser | -7/Zion | Archive Cloaking Device | -7/Zion | Archive Chainsword | -7/Zion | Archive Lgt. Angular Momentum Engine | -7/Zion | Archive Lightning Gun | -7/Zion | Archive Adv. Plasma Cannon | -7/Zion | Archive Combat Drone Bay | -6/Data Miner | Free Lgt. Regenerative Plating | -6/Data Miner | Free Enh. Flexi-carbon Leg | -6/Data Miner | Free Exp. Heat Sink | -6/Data Miner | Free Cld. Plasma Rifle | -6/Data Miner | Free Impulse Thruster | -6/Data Miner | Free Adv. Particle Charger | -6/Data Miner | Free Matter Neutralizer | -6/Data Miner | Free Gyrokinetic Inverter | -6/Data Miner | Free Quantum Capacitor | -6/Data Miner | Free Adv. Heavy Treads | -6/Data Miner | Free Robot Schematics ------------------ S-27 Virus | -7/Zion | Archive G-47 Trooper | -7/Zion | Archive T-07 Excavator | -7/Zion | Archive L-61 Swordsman | -7/Zion | Archive A-15 Conveyor | -6/Data Miner | Free G-50 Soldier | -6/Data Miner | Free Y-54 Guardian | -6/Data Miner | Free L-41 Fighter | -6/Data Miner | Free R-10 Processor | -6/Data Miner | Free Fabricated ------------ G-47 Trooper | x3 | -7/Factory | Preloaded Plasma Cutter | x2 | -7/Factory Lgt. Regenerative Plating | x1 | -4/Factory Repaired ---------- Nothing Studied --------- Lgt. Treads | -8/Materials | Hacked Pulse Rifle | -7/Factory | Hacked Hvy. Assault Rifle | -7/Factory | Hacked Lgt. Deuterium Engine | -7/Factory | Hacked Adv. Treads | -7/Factory | Hacked Alien Tech Used ----------------- None Achievements -------------- Deadly Force The Robot, The Myth, The Legend Challenges ------------ None Game ------ Seed MissileRemoteMediator Manual? 0 Play Time 03:27:51 Cumulative 70.4 hours Start 2026.07.23 @ 18:41:42 End 2026.07.25 @ 14:30:37 Sessions 15 Manual Loads 0 Difficulty Rogue Special Mode None Game No. 47 Rogue 46 Adventurer 1 Explorer 0 Win Type - Total 4 Types 3/0/0/1/0/0/0/0/0/0 Lore% 42 Gallery% 47 Achievement% 47 Wizard Run 0 Options --------- Layout 1 ASCII 0 Keyboard 0 Movement Numpad Keybinds 0 Fullscreen 1 Font 32/SmallcapsGlow Map View 50x35 Zoom Use 0% Tactical HUD 0 Map Filters NONE Filters NONE Steam 1 RUN: 7ff10c87-0011-4f36-a8e4-11ad68f4376f